fUST/lending_fUST_20250317
["ID","MTS","AMOUNT","RATE_DAILY","PERIOD"]
[356296725,1742221333575,152.61,0.000139,31]
[356296726,1742221333639,152.61,0.000139,31]
[356296727,1742221333703,152.61,0.000139,31]
[356296728,1742221333776,152.61,0.000139,31]
[356296729,1742221333818,152.61,0.000139,31]
[356296730,1742221333882,152.61,0.000139,31]
[356296735,1742221542984,850.121094,7.397e-05,2]
[356296797,1742221831993,-2129.49796479,8.118e-05,2]
[356296817,1742221837615,-662.216,8.118e-05,2]
[356296833,1742221840116,-4687.9604015,8.118e-05,2]
[356296834,1742221840126,-500.0,8.118e-05,2]
[356296835,1742221840136,-375.41697278,8.118e-05,2]
[356296836,1742221840146,-500.0,8.118e-05,2]
[356296837,1742221840155,-500.0,8.118e-05,2]
[356296838,1742221840165,-370.59542144,8.118e-05,2]
[356296839,1742221840177,-129.40457856,8.118e-05,2]
[356296840,1742221840186,-375.54201523,8.118e-05,2]
[356296841,1742221840195,-7.4277231,8.118e-05,2]
[356296842,1742221840207,-492.5722769,8.118e-05,2]
[356296843,1742221840216,-500.0,8.118e-05,2]
[356296844,1742221840228,-500.0,8.118e-05,2]
[356296845,1742221840237,-75.83661414,8.118e-05,2]
[356296872,1742221843140,-424.16338586,8.118e-05,2]
[356296873,1742221843150,-500.0,8.118e-05,2]
[356296874,1742221843160,-630.12406786,8.118e-05,2]
[356296875,1742221843170,-500.0,8.118e-05,2]
[356296876,1742221843180,-500.0,8.118e-05,2]
[356296877,1742221843190,-500.0,8.118e-05,2]
[356296878,1742221843199,-494.15332506,8.118e-05,2]
[356296879,1742221843210,-934.07699952,8.119e-05,2]
[356296949,1742221845893,-9590.74812858,8.119e-05,2]
[356296951,1742221845903,-222000.0,8.119e-05,2]
[356296953,1742221845914,-541.0,8.144e-05,2]
[356296955,1742221845924,-1913.0,8.144e-05,2]
[356296957,1742221845934,-2267.0,8.144e-05,2]
[356296959,1742221845944,-399.0,8.144e-05,2]
[356296961,1742221845954,-275.99663652,8.144e-05,2]
[356296963,1742221845965,-275.99663651,8.156e-05,2]
[356296965,1742221845973,-275.99663651,8.169e-05,2]
[356296967,1742221845984,-275.99663651,8.181e-05,2]
[356296969,1742221845994,-206.84569796,8.192e-05,2]
[356296971,1742221846005,-169.30842467,8.193e-05,2]
[356296973,1742221846015,-500.0,8.193e-05,2]
[356296976,1742221846026,-575.30376143,8.193e-05,2]
[356296978,1742221846036,-392.40020983,8.193e-05,2]
[356296979,1742221846046,-500.0,8.193e-05,2]
[356296982,1742221846056,-500.0,8.193e-05,2]
[356296984,1742221846067,-500.0,8.193e-05,2]
[356296986,1742221846078,-500.0,8.193e-05,2]
[356296988,1742221846088,-500.0,8.193e-05,2]
[356296989,1742221846099,-155.9611258,8.193e-05,2]
[356296992,1742221846109,-500.0,8.193e-05,2]
[356296994,1742221846119,-500.0,8.193e-05,2]
[356296996,1742221846129,-160.01531514,8.193e-05,2]
[356296998,1742221846139,-500.0,8.193e-05,2]
[356297000,1742221846149,-500.0,8.193e-05,2]
[356297002,1742221846160,-405.07508102,8.193e-05,2]
[356297004,1742221846170,-500.0,8.193e-05,2]
[356297006,1742221846180,-500.0,8.193e-05,2]
[356297008,1742221846190,-500.0,8.193e-05,2]
[356297010,1742221846202,-165.303,8.193e-05,2]
[356297012,1742221846213,-275.99663651,8.193e-05,2]
[356297014,1742221846223,-500.0,8.198e-05,2]
[356297016,1742221846235,-2040.15430422,8.2e-05,2]
[356297018,1742221846245,-151.0,8.2e-05,2]
[356297020,1742221846255,-571.9082245,8.2e-05,2]
[356297021,1742221846264,-155.6779931,8.2e-05,2]
[356297022,1742221846274,-560.4749021,8.2e-05,2]
[356297023,1742221846286,-313.6602529,8.2e-05,2]
[356297024,1742221846299,-560.4749021,8.2e-05,2]
[356297025,1742221846309,-560.4749021,8.2e-05,2]
[356297026,1742221846319,-600.0,8.214e-05,2]
[356297027,1742221846332,-500.000001,8.215e-05,2]
[356297028,1742221846342,-507.63331801,8.219e-05,2]
[356297029,1742221846352,-511.87868561,8.219e-05,2]
[356297030,1742221846363,-500.0,8.219e-05,2]
[356297031,1742221846373,-528.0,8.219e-05,2]
[356297032,1742221846383,-500.0,8.219e-05,2]
[356297033,1742221846393,-557.1796201,8.219e-05,2]
[356297034,1742221846403,-1192.62,8.219e-05,2]
[356297035,1742221846414,-500.0,8.219e-05,2]
[356297036,1742221846424,-500.0,8.219e-05,2]
[356297037,1742221846433,-500.0,8.219e-05,2]
[356297038,1742221846444,-500.0,8.219e-05,2]
[356297039,1742221846454,-500.0,8.219e-05,2]
[356297040,1742221846464,-500.0,8.219e-05,2]
[356297041,1742221846475,-500.0,8.219e-05,2]
[356297042,1742221846486,-500.0,8.219e-05,2]
[356297043,1742221846496,-500.0,8.219e-05,2]
[356297044,1742221846506,-500.0,8.219e-05,2]
[356297045,1742221846516,-500.0,8.219e-05,2]
[356297046,1742221846526,-500.0,8.219e-05,2]
[356297047,1742221846535,-531.82,8.219e-05,2]
[356297048,1742221846545,-500.0,8.219e-05,2]
[356297049,1742221846555,-151.0,8.219e-05,2]
[356297050,1742221846565,-151.0,8.219e-05,2]
[356297051,1742221846575,-151.0,8.219e-05,2]
[356297052,1742221846584,-365.57342018,8.219e-05,2]
[356297053,1742221846594,-500.0,8.219e-05,2]
[356297054,1742221846603,-500.0,8.219e-05,2]
[356297055,1742221846613,-150.9507973,8.219e-05,2]
[356297056,1742221846623,-500.0,8.219e-05,2]
[356297057,1742221846632,-500.0,8.219e-05,2]
[356297058,1742221846642,-500.0,8.219e-05,2]
[356297059,1742221846652,-555.66283212,8.219e-05,2]
[356297060,1742221846663,-500.0,8.219e-05,2]
[356297061,1742221846673,-500.0,8.219e-05,2]
[356297062,1742221846683,-500.0,8.219e-05,2]
[356297063,1742221846692,-500.0,8.219e-05,2]
[356297064,1742221846703,-500.0,8.219e-05,2]
[356297065,1742221846713,-500.0,8.219e-05,2]
[356297066,1742221846723,-500.0,8.219e-05,2]
[356297067,1742221846734,-500.0,8.219e-05,2]
[356297068,1742221846744,-500.0,8.219e-05,2]
[356297069,1742221846754,-500.0,8.219e-05,2]
[356297070,1742221846765,-500.0,8.219e-05,2]
[356297071,1742221846775,-529.2441808,8.219e-05,2]
[356297072,1742221846786,-500.0,8.219e-05,2]
[356297073,1742221846796,-502.78500369,8.219e-05,2]
[356297074,1742221846806,-150.3,8.219e-05,2]
[356297075,1742221846816,-183.38935456,8.219e-05,2]
[356297076,1742221846826,-500.0,8.219e-05,2]
[356297077,1742221846836,-508.59403763,8.219e-05,2]
[356297078,1742221846846,-500.0,8.219e-05,2]
[356297079,1742221846855,-495.43557174,8.219e-05,2]
[356297080,1742221846865,-1000.0,8.219e-05,2]
[356297081,1742221846875,-500.0,8.219e-05,2]
[356297082,1742221846885,-500.0,8.219e-05,2]
[356297083,1742221846895,-500.0,8.219e-05,2]
[356297084,1742221846905,-500.0,8.219e-05,2]
[356297085,1742221846916,-508.7762231,8.219e-05,2]
[356297086,1742221846926,-500.0,8.219e-05,2]
[356297087,1742221846936,-1908.57,8.219e-05,2]
[356297088,1742221846946,-500.0,8.219e-05,2]
[356297089,1742221846956,-3940.49,8.219e-05,2]
[356297090,1742221846966,-369.22956303,8.219e-05,2]
[356297091,1742221846977,-500.0,8.219e-05,2]
[356297092,1742221846987,-666.76,8.219e-05,2]
[356297093,1742221846998,-500.0,8.219e-05,2]
[356297094,1742221847008,-513.06803128,8.219e-05,2]
[356297095,1742221847018,-500.0,8.219e-05,2]
[356297096,1742221847027,-500.0,8.219e-05,2]
[356297097,1742221847037,-928.03,8.219e-05,2]
[356297098,1742221847046,-500.0,8.219e-05,2]
[356297099,1742221847056,-2452.99,8.219e-05,2]
[356297100,1742221847066,-3133.48,8.219e-05,2]
[356297101,1742221847075,-500.0,8.219e-05,2]
[356297102,1742221847085,-500.0,8.219e-05,2]
[356297103,1742221847095,-500.0,8.219e-05,2]
[356297104,1742221847105,-2383.24,8.219e-05,2]
[356297105,1742221847116,-1449.81,8.219e-05,2]
[356297106,1742221847126,-5498.62,8.219e-05,2]
[356297107,1742221847135,-500.0,8.219e-05,2]
[356297108,1742221847146,-1587.92,8.219e-05,2]
[356297109,1742221847155,-500.0,8.219e-05,2]
[356297110,1742221847165,-500.0,8.219e-05,2]
[356297111,1742221847175,-500.0,8.219e-05,2]
[356297112,1742221847184,-1210.15,8.219e-05,2]
[356297113,1742221847193,-500.0,8.219e-05,2]
[356297114,1742221847203,-500.0,8.219e-05,2]
[356297115,1742221847212,-1436.99,8.219e-05,2]
[356297116,1742221847222,-500.0,8.219e-05,2]
[356297117,1742221847233,-500.0,8.219e-05,2]
[356297118,1742221847243,-7159.29,8.219e-05,2]
[356297119,1742221847252,-500.0,8.219e-05,2]
[356297120,1742221847262,-500.0,8.219e-05,2]
[356297121,1742221847272,-79246.58,8.219e-05,2]
[356297122,1742221847282,-500.0,8.219e-05,2]
[356297123,1742221847296,-966.24,8.219e-05,2]
[356297124,1742221847306,-818.52,8.219e-05,2]
[356297125,1742221847315,-500.0,8.219e-05,2]
[356297126,1742221847324,-500.0,8.219e-05,2]
[356297127,1742221847335,-500.0,8.219e-05,2]
[356297128,1742221847345,-2039.21,8.219e-05,2]
[356297129,1742221847354,-500.0,8.219e-05,2]
[356297130,1742221847365,-2512.92,8.219e-05,2]
[356297131,1742221847375,-400.0,8.219e-05,2]
[356297132,1742221847385,-500.0,8.219e-05,2]
[356297133,1742221847395,-500.0,8.219e-05,2]
[356297134,1742221847404,-500.0,8.219e-05,2]
[356297135,1742221847414,-500.0,8.219e-05,2]
[356297136,1742221847423,-500.0,8.219e-05,2]
[356297137,1742221847433,-500.0,8.219e-05,2]
[356297138,1742221847443,-500.0,8.219e-05,2]
[356297139,1742221847453,-6040.1,8.219e-05,2]
[356297140,1742221847463,-500.0,8.219e-05,2]
[356297141,1742221847473,-4472.89,8.219e-05,2]
[356297142,1742221847486,-500.0,8.219e-05,2]
[356297143,1742221847496,-312.77534761,8.219e-05,2]
[356297144,1742221847506,-514.92337622,8.219e-05,2]
[356297145,1742221847515,-500.0,8.219e-05,2]
[356297146,1742221847525,-500.0,8.219e-05,2]
[356297147,1742221847535,-500.0,8.219e-05,2]
[356297148,1742221847545,-637.64305924,8.219e-05,2]
[356297149,1742221847555,-4166.66,8.219e-05,2]
[356297150,1742221847565,-4166.66,8.219e-05,2]
[356297151,1742221847575,-4166.66,8.219e-05,2]
[356297152,1742221847584,-4166.66,8.219e-05,2]
[356297153,1742221847594,-4166.66,8.219e-05,2]
[356297154,1742221847604,-500.0,8.219e-05,2]
[356297155,1742221847614,-4166.66,8.219e-05,2]
[356297156,1742221847624,-4166.66,8.219e-05,2]
[356297157,1742221847633,-4166.66,8.219e-05,2]
[356297158,1742221847644,-500.0,8.219e-05,2]
[356297159,1742221847654,-4166.66,8.219e-05,2]
[356297160,1742221847664,-4166.66,8.219e-05,2]
[356297161,1742221847674,-4166.66,8.219e-05,2]
[356297162,1742221847684,-150.3,8.219e-05,2]
[356297163,1742221847693,-4166.66,8.219e-05,2]
[356297164,1742221847703,-4166.66,8.219e-05,2]
[356297165,1742221847713,-4166.66,8.219e-05,2]
[356297166,1742221847723,-4166.66,8.219e-05,2]
[356297167,1742221847736,-4166.66,8.219e-05,2]
[356297168,1742221847747,-4166.66,8.219e-05,2]
[356297169,1742221847757,-4166.66,8.219e-05,2]
[356297170,1742221847767,-4166.66,8.219e-05,2]
[356297171,1742221847777,-4166.66,8.219e-05,2]
[356297172,1742221847788,-4166.66,8.219e-05,2]
[356297173,1742221847797,-500.0,8.219e-05,2]
[356297174,1742221847807,-4166.66,8.219e-05,2]
[356297175,1742221847818,-4166.66,8.219e-05,2]
[356297176,1742221847828,-4166.82,8.219e-05,2]
[356297177,1742221847838,-721.33,8.219e-05,2]
[356297178,1742221847848,-500.0,8.219e-05,2]
[356297179,1742221847859,-500.0,8.219e-05,2]
[356297180,1742221847869,-150.3,8.219e-05,2]
[356297181,1742221847879,-5560.48,8.219e-05,2]
[356297182,1742221847890,-500.0,8.219e-05,2]
[356297183,1742221847899,-500.0,8.219e-05,2]
[356297184,1742221847909,-500.0,8.219e-05,2]
[356297185,1742221847919,-500.0,8.219e-05,2]
[356297186,1742221847928,-500.0,8.219e-05,2]
[356297187,1742221847939,-500.0,8.219e-05,2]
[356297188,1742221847949,-500.0,8.219e-05,2]
[356297189,1742221847958,-692.68,8.219e-05,2]
[356297190,1742221847969,-667.47,8.219e-05,2]
[356297191,1742221847982,-508.1223083,8.219e-05,2]
[356297192,1742221847992,-622.98,8.219e-05,2]
[356297193,1742221848002,-500.0,8.219e-05,2]
[356297194,1742221848012,-595.66,8.219e-05,2]
[356297195,1742221848022,-512.04164007,8.219e-05,2]
[356297196,1742221848032,-2423.93,8.219e-05,2]
[356297197,1742221848043,-796.1,8.219e-05,2]
[356297198,1742221848054,-500.0,8.219e-05,2]
[356297199,1742221848065,-652.53,8.219e-05,2]
[356297200,1742221848076,-7774.70947484,8.219e-05,2]
[356297201,1742221848087,-500.0,8.219e-05,2]
[356297202,1742221848098,-998.08,8.219e-05,2]
[356297203,1742221848109,-1000.0,8.219e-05,2]
[356297204,1742221848119,-150.3,8.246e-05,2]
[356297205,1742221848129,-500.0,8.246e-05,2]
[356297206,1742221848139,-500.0,8.246e-05,2]
[356297207,1742221848150,-999.61888561,8.246e-05,2]
[356297208,1742221848160,-500.0,8.246e-05,2]
[356297209,1742221848170,-647.1018218,8.246e-05,2]
[356297210,1742221848180,-500.0,8.246e-05,2]
[356297211,1742221848191,-500.0,8.246e-05,2]
[356297212,1742221848201,-500.0,8.246e-05,2]
[356297213,1742221848211,-817.3976023,8.25e-05,2]
[356297214,1742221848222,-622.2,8.269e-05,2]
[356297215,1742221848233,-187.0368658,8.27e-05,2]
[356297216,1742221848244,-351.7049167,8.27e-05,2]
[356297217,1742221848254,-150.3,8.274e-05,2]
[356297218,1742221848265,-500.0,8.274e-05,2]
[356297219,1742221848276,-500.0,8.274e-05,2]
[356297220,1742221848289,-500.0,8.274e-05,2]
[356297221,1742221848301,-500.0,8.274e-05,2]
[356297222,1742221848311,-500.0,8.274e-05,2]
[356297223,1742221848321,-500.0,8.274e-05,2]
[356297224,1742221848331,-218.52256552,8.301e-05,2]
[356297225,1742221848341,-500.0,8.301e-05,2]
[356297226,1742221848352,-500.0,8.301e-05,2]
[356297227,1742221848362,-500.0,8.301e-05,2]
[356297228,1742221848374,-500.0,8.301e-05,2]
[356297229,1742221848384,-593.8304956,8.301e-05,2]
[356297230,1742221848394,-500.0,8.301e-05,2]
[356297231,1742221848404,-645.2214,8.324e-05,2]
[356297232,1742221848414,-160.0,8.326e-05,2]
[356297233,1742221848424,-12458.93820146,8.326e-05,2]
[356297234,1742221848435,-833.89138366,8.326e-05,2]
[356297235,1742221848445,-160.0,8.326e-05,2]
[356297236,1742221848455,-417.81762827,8.326e-05,2]
[356297237,1742221848466,-160.0,8.326e-05,2]
[356297238,1742221848476,-768.85601191,8.329e-05,2]
[356297239,1742221848486,-500.0,8.329e-05,2]
[356297240,1742221848495,-500.0,8.329e-05,2]
[356297241,1742221848505,-500.0,8.329e-05,2]
[356297242,1742221848514,-500.0,8.329e-05,2]
[356297243,1742221848524,-882.61246713,8.356e-05,2]
[356297244,1742221848533,-500.0,8.356e-05,2]
[356297245,1742221848543,-500.0,8.356e-05,2]
[356297246,1742221848554,-500.0,8.356e-05,2]
[356297247,1742221848564,-882.46926559,8.379e-05,2]
[356297248,1742221848573,-500.0,8.383e-05,2]
[356297249,1742221848583,-500.0,8.383e-05,2]
[356297250,1742221848592,-500.0,8.383e-05,2]
[356297251,1742221848602,-500.0,8.411e-05,2]
[356297252,1742221848611,-500.0,8.411e-05,2]
[356297253,1742221848621,-500.0,8.411e-05,2]
[356297254,1742221848631,-500.0,8.438e-05,2]
[356297255,1742221848640,-657.5673873,8.438e-05,2]
[356297256,1742221848650,-500.0,8.438e-05,2]
[356297257,1742221848659,-500.0,8.466e-05,2]
[356297258,1742221848669,-500.0,8.466e-05,2]
[356297259,1742221848680,-500.0,8.473e-05,2]
[356297260,1742221848689,-1570.98623988,8.485e-05,2]
[356297261,1742221848699,-500.0,8.493e-05,2]
[356297262,1742221848709,-500.0,8.493e-05,2]
[356297263,1742221848719,-1192.62,8.493e-05,2]
[356297264,1742221848729,-500.0,8.493e-05,2]
[356297265,1742221848739,-500.0,8.493e-05,2]
[356297266,1742221848749,-500.0,8.493e-05,2]
[356297267,1742221848759,-500.0,8.493e-05,2]
[356297268,1742221848768,-500.0,8.493e-05,2]
[356297269,1742221848779,-531.82,8.493e-05,2]
[356297270,1742221848789,-511.33502913,8.493e-05,2]
[356297271,1742221848800,-500.0,8.493e-05,2]
[356297272,1742221848811,-500.0,8.493e-05,2]
[356297273,1742221848821,-500.0,8.493e-05,2]
[356297274,1742221848832,-500.0,8.493e-05,2]
[356297275,1742221848842,-500.0,8.493e-05,2]
[356297276,1742221848852,-500.0,8.493e-05,2]
[356297277,1742221848862,-1001.46556435,8.493e-05,2]
[356297278,1742221848872,-508.99,8.493e-05,2]
[356297279,1742221848883,-298.99897539,8.493e-05,2]
[356297280,1742221848893,-500.0,8.493e-05,2]
[356297281,1742221848903,-1908.57,8.493e-05,2]
[356297282,1742221848914,-3940.49,8.493e-05,2]
[356297283,1742221848925,-666.76,8.493e-05,2]
[356297284,1742221848936,-500.0,8.493e-05,2]
[356297285,1742221848946,-500.0,8.493e-05,2]
[356297286,1742221848956,-466.61,8.493e-05,2]
[356297287,1742221848966,-928.03,8.493e-05,2]
[356297288,1742221848979,-533.74351079,8.493e-05,2]
[356297289,1742221848990,-2452.99,8.493e-05,2]
[356297290,1742221849001,-3133.48,8.493e-05,2]
[356297291,1742221849011,-2383.24,8.493e-05,2]
[356297292,1742221849020,-1449.81,8.493e-05,2]
[356297293,1742221849031,-5498.62,8.493e-05,2]
[356297294,1742221849042,-158.29,8.493e-05,2]
[356297295,1742221849056,-1587.92,8.493e-05,2]
[356297296,1742221849067,-500.0,8.493e-05,2]
[356297297,1742221849078,-500.0,8.493e-05,2]
[356297298,1742221849088,-342.71002509,8.493e-05,2]
[356297299,1742221849446,-867.43997491,8.493e-05,2]
[356297300,1742221849457,-500.0,8.493e-05,2]
[356297301,1742221849468,-500.0,8.493e-05,2]
[356297302,1742221849482,-621.69002529,8.493e-05,2]
[356297303,1742221849495,-815.29997471,8.493e-05,2]
[356297304,1742221849506,-500.0,8.493e-05,2]
[356297305,1742221849516,-2645.31396605,8.493e-05,2]
[356297307,1742221893970,157.307952,7.416e-05,2]
[356297308,1742221894439,157.307952,7.416e-05,41]
[356297309,1742221894679,157.307952,7.416e-05,80]
[356297310,1742221895031,157.307952,7.416e-05,119]
[356297312,1742221940676,152.64,0.000139,31]
[356297313,1742221940740,152.64,0.000139,31]
[356297314,1742221940804,152.64,0.000139,31]
[356297315,1742221940863,152.64,0.000139,31]
[356297316,1742221940921,152.64,0.000139,31]
[356297317,1742221940987,152.64,0.000139,31]
[356297318,1742221941107,152.64,0.000139,31]
[356297324,1742222416009,1000.0,0.00015,109]
[356297326,1742222454403,1664.75,0.00014,30]
[356297329,1742222547189,152.67,0.000139,31]
[356297330,1742222547245,152.67,0.000139,31]
[356297331,1742222547301,152.67,0.000139,31]
[356297332,1742222547346,152.67,0.000139,31]
[356297333,1742222547422,152.67,0.000139,31]
[356297334,1742222547492,152.67,0.000139,31]
[356297335,1742222547548,152.67,0.000139,31]
[356297364,1742223032110,-300.0,8.017e-05,2]
[356297365,1742223032120,-500.0,8.018e-05,2]
[356297366,1742223032130,-415.91742577,8.018e-05,2]
[356297367,1742223032139,-500.0,8.018e-05,2]
[356297368,1742223032149,-351.47009942,8.018e-05,2]
[356297369,1742223032158,-500.0,8.018e-05,2]
[356297370,1742223032168,-67264.80456545,8.019e-05,2]
[356297371,1742223032220,-835.089223,8.019e-05,2]
[356297372,1742223032257,-4177.63221511,8.019e-05,2]
[356297441,1742223046423,-8190.0,8.019e-05,2]
[356297442,1742223046438,-1903.59417598,8.019e-05,2]
[356297443,1742223046545,-1331.29648,8.019e-05,2]
[356297454,1742223153796,152.71,0.000139,31]
[356297455,1742223153835,152.71,0.000139,31]
[356297456,1742223153874,152.71,0.000139,31]
[356297457,1742223153949,152.71,0.000139,31]
[356297458,1742223154009,152.71,0.000139,31]
[356297459,1742223154066,152.71,0.000139,31]
[356297460,1742223154123,152.71,0.000139,31]
[356297461,1742223164596,194.0,8e-05,2]
[356297462,1742223185270,194.0229336,8e-05,2]
[356297464,1742223263891,222000.0,7.919e-05,2]
[356297465,1742223311604,24788.74400024,8e-05,2]
[356297467,1742223400863,222000.0,7.919e-05,2]
[356297473,1742223760167,152.72,0.000139,31]
[356297474,1742223760208,152.72,0.000139,31]
[356297475,1742223760270,152.72,0.000139,31]
[356297476,1742223760334,152.72,0.000139,31]
[356297477,1742223760406,152.72,0.000139,31]
[356297478,1742223760457,152.72,0.000139,31]
[356297479,1742223760520,152.72,0.000139,31]
[356297506,1742223982025,-500.0,8.327e-05,7]
[356297549,1742224232411,-350.0,8.017e-05,2]
[356297551,1742224232422,-300.0,8.117e-05,2]
[356297553,1742224232433,-1490.65010005,8.118e-05,2]
[356297555,1742224232444,-180.37644743,8.118e-05,2]
[356297557,1742224232456,-500.0,8.118e-05,2]
[356297559,1742224232467,-476.79488415,8.118e-05,2]
[356297561,1742224232478,-500.0,8.118e-05,2]
[356297563,1742224232489,-500.0,8.118e-05,2]
[356297565,1742224232500,-399.001,8.118e-05,2]
[356297567,1742224232515,-28830.59973595,8.119e-05,2]
[356297575,1742224232598,-122902.89777692,8.119e-05,2]
[356297578,1742224232610,-602.06776333,8.153e-05,2]
[356297580,1742224232621,-11968.40779162,8.181e-05,2]
[356297582,1742224232631,-150.0,8.181e-05,2]
[356297584,1742224232642,-2267.0,8.181e-05,2]
[356297586,1742224232652,-541.0,8.181e-05,2]
[356297587,1742224232662,-1913.0,8.181e-05,2]
[356297590,1742224232673,-219.13297763,8.2e-05,2]
[356297592,1742224232683,-500.0,8.219e-05,2]
[356297594,1742224232694,-165.303,8.219e-05,2]
[356297596,1742224232704,-500.0,8.219e-05,2]
[356297598,1742224232715,-500.0,8.219e-05,2]
[356297600,1742224232725,-500.0,8.219e-05,2]
[356297602,1742224232735,-500.0,8.219e-05,2]
[356297604,1742224232745,-500.0,8.219e-05,2]
[356297606,1742224232755,-500.0,8.219e-05,2]
[356297608,1742224232769,-310.75860917,8.219e-05,2]
[356297610,1742224232779,-500.0,8.219e-05,2]
[356297612,1742224232789,-2322.93,8.219e-05,2]
[356297614,1742224232799,-611.19,8.219e-05,2]
[356297616,1742224232814,-500.0,8.219e-05,2]
[356297618,1742224232825,-949.23387496,8.219e-05,2]
[356297657,1742224238163,-800.28612504,8.219e-05,2]
[356297658,1742224238174,-500.0,8.219e-05,2]
[356297659,1742224238184,-367.89645608,8.219e-05,2]
[356297677,1742224243996,-399.0,8.181e-05,2]
[356297678,1742224244006,-213.0994314,8.219e-05,2]
[356297679,1742224244167,-3031.11411252,8.219e-05,2]
[356297680,1742224244177,-500.0,8.219e-05,2]
[356297681,1742224244186,-500.0,8.219e-05,2]
[356297682,1742224244195,-850.7,8.219e-05,2]
[356297683,1742224244204,-500.0,8.219e-05,2]
[356297684,1742224244215,-2739.18,8.219e-05,2]
[356297686,1742224244224,-2872.36,8.219e-05,2]
[356297687,1742224244233,-500.0,8.219e-05,2]
[356297688,1742224244243,-2184.63,8.219e-05,2]
[356297689,1742224244253,-1455.59,8.219e-05,2]
[356297690,1742224244263,-429.17145001,8.219e-05,2]
[356297691,1742224244277,-4049.77065352,8.219e-05,2]
[356297692,1742224244288,-494.18,8.219e-05,2]
[356297706,1742224365393,152.74,0.000139,31]
[356297707,1742224365438,152.74,0.000139,31]
[356297708,1742224365507,152.74,0.000139,31]
[356297709,1742224365647,152.74,0.000139,31]
[356297710,1742224365681,152.74,0.000139,31]
[356297711,1742224365742,152.74,0.000139,31]
[356297712,1742224365805,152.74,0.000139,31]
[356297719,1742224583592,22402.6541399,7.397e-05,2]
[356297724,1742224969685,152.76,0.000139,31]
[356297725,1742224969749,152.76,0.000139,31]
[356297726,1742224969809,152.76,0.000139,31]
[356297727,1742224969874,152.76,0.000139,31]
[356297728,1742224969931,152.76,0.000139,31]
[356297729,1742224969990,152.76,0.000139,31]
[356297730,1742224970047,152.76,0.000139,31]
[356297777,1742225432640,-500.0,8.018e-05,2]
[356297778,1742225432650,-465.86109972,8.018e-05,2]
[356297779,1742225432660,-451.4581694,8.018e-05,2]
[356297780,1742225432670,-300.0,8.018e-05,2]
[356297781,1742225432680,-311.0,8.018e-05,3]
[356297782,1742225432690,-77931.36581405,8.019e-05,2]
[356297783,1742225432703,-115364.96172534,8.019e-05,2]
[356297784,1742225432712,-1000.0,8.1e-05,2]
[356297785,1742225432722,-150.0,8.181e-05,2]
[356297786,1742225432731,-541.0,8.181e-05,2]
[356297787,1742225432741,-2267.0,8.181e-05,2]
[356297788,1742225432750,-1913.0,8.181e-05,2]
[356297789,1742225432759,-399.0,8.181e-05,2]
[356297790,1742225432768,-1000.0,8.2e-05,2]
[356297791,1742225432779,-499.999999,8.218e-05,2]
[356297792,1742225432789,-606.86,8.219e-05,2]
[356297793,1742225432799,-165.304,8.219e-05,2]
[356297795,1742225432809,-1093.24,8.219e-05,2]
[356297796,1742225432819,-500.0,8.219e-05,2]
[356297798,1742225432829,-500.0,8.219e-05,2]
[356297800,1742225432839,-500.0,8.219e-05,2]
[356297802,1742225432848,-500.0,8.219e-05,2]
[356297804,1742225432858,-500.0,8.219e-05,2]
[356297806,1742225432869,-166.95,8.219e-05,2]
[356297807,1742225432878,-222.88,8.219e-05,2]
[356297808,1742225432888,-500.0,8.219e-05,2]
[356297809,1742225432898,-500.0,8.219e-05,2]
[356297810,1742225432908,-956.49,8.219e-05,2]
[356297811,1742225432918,-1676.63,8.219e-05,2]
[356297812,1742225432928,-585.73,8.219e-05,2]
[356297813,1742225432938,-500.0,8.219e-05,2]
[356297814,1742225432948,-3461.61,8.219e-05,2]